fUSD/lending_fUSD_20250926
["ID","MTS","AMOUNT","RATE_DAILY","PERIOD"]
[387846885,1758925592415,-154.71,0.0001856,2]
[387846886,1758925598836,-154.71,0.0001856,2]
[387846887,1758925600435,-178.66699279,0.0001856,2]
[387846890,1758925605077,-176.43,0.0001856,2]
[387846891,1758925608295,-296.15569993,0.0001856,2]
[387846892,1758925613532,-190.87161151,0.00018559,2]
[387846893,1758925613558,-114.9413957,0.00018559,2]
[387846894,1758925618029,-288.02695646,0.00018559,2]
[387846896,1758925623899,500.0,0.0001452,2]
[387846897,1758925626528,500.0,0.0001726,2]
[387846917,1758925706383,500.0,0.00030136,120]
[387846934,1758925746913,9682.38,0.00018481,2]
[387846942,1758925767072,165.85,0.00018462,2]
[387846943,1758925772418,250.0,0.00015,2]
[387846945,1758925774104,300.0,0.00017,2]
[387846946,1758925777692,500.0,0.00030136,120]
[387846948,1758925785144,173.91,0.0001477,2]
[387846953,1758925822945,237.33,0.00018486,2]
[387846966,1758925831508,-515.77926238,0.00018558,2]
[387846967,1758925831519,-684.22073762,0.00018558,2]
[387846968,1758925831528,-408.89920287,0.00018558,2]
[387846969,1758925831538,-500.0,0.00018558,2]
[387846970,1758925831547,-317.56906778,0.00018558,2]
[387846971,1758925831557,-530.64930479,0.00018559,2]
[387846972,1758925831567,-97.03164784,0.00018559,2]
[387846973,1758925831576,-173.8234279,0.00018559,2]
[387846974,1758925831586,-328.56219625,0.00018559,2]
[387846975,1758925831595,-316.58602714,0.00018559,2]
[387846976,1758925831604,-2000.0,0.00018559,2]
[387846977,1758925831614,-195.0,0.0001856,2]
[387846978,1758925831624,-47670.93838408,0.0001856,2]
[387846979,1758925831635,-52448.87267861,0.0001856,2]
[387846980,1758925831645,-32709.81740295,0.00018564,2]
[387846981,1758925831684,-222.86265895,0.00018564,2]
[387846982,1758925831694,-1784.741581,0.00018564,2]
[387846983,1758925831703,-666.0,0.00018578,3]
[387846984,1758925831713,-168.0,0.00018616,2]
[387846985,1758925831722,-1000.0,0.0001864,2]
[387846986,1758925831732,-250.0,0.00018686,2]
[387846987,1758925831742,-332.20330044,0.00018699,2]
[387846988,1758925831752,-151.0,0.00018699,2]
[387846989,1758925831761,-151.0,0.00018699,2]
[387846990,1758925831770,-159.97358766,0.00018699,2]
[387846991,1758925831780,-200.0,0.00018699,2]
[387846992,1758925831789,-202.20974195,0.00018699,2]
[387846993,1758925831800,-180.06018685,0.00018699,2]
[387846994,1758925831810,-5502.98,0.0001871,2]
[387846995,1758925831819,-572.0,0.00018753,2]
[387846996,1758925831829,-168.0,0.00018791,2]
[387846997,1758925831839,-168.0,0.00018855,2]
[387846998,1758925831849,-168.0,0.00018856,2]
[387846999,1758925831858,-2600.0,0.00018904,2]
[387847000,1758925831868,-1000.0,0.00018962,2]
[387847001,1758925831878,-708.60768692,0.00018965,2]
[387847002,1758925831887,-1339.84251741,0.00018999,2]
[387847003,1758925831897,-201.93286099,0.00018999,2]
[387847004,1758925831906,-243.47470451,0.00018999,2]
[387847005,1758925831915,-154.25700303,0.00019014,2]
[387847006,1758925831925,-192.82125378,0.00019014,2]
[387847007,1758925831934,-227.25,0.00019037,2]
[387847008,1758925831944,-192.82125378,0.00019068,2]
[387847009,1758925831954,-150.0,0.0001908,2]
[387847010,1758925831963,-154.25700303,0.00019096,2]
[387847012,1758925831972,-152.55,0.00019145,2]
[387847013,1758925831982,-192.82125378,0.00019151,2]
[387847014,1758925831991,-154.25700303,0.00019178,2]
[387847016,1758925832001,-150.0,0.00019209,2]
[387847018,1758925832010,-192.82125378,0.00019233,2]
[387847019,1758925832019,-288.1,0.0001928,2]
[387847021,1758925832029,-154.25700303,0.00019288,2]
[387847023,1758925832038,-192.82125378,0.00019315,2]
[387847024,1758925832050,-168.68,0.00019326,2]
[387847026,1758925832060,-350.68,0.00019342,2]
[387847028,1758925832069,-269.0,0.00019357,2]
[387847029,1758925832079,-168.0,0.00019363,2]
[387847031,1758925832088,-154.25700303,0.0001937,2]
[387847033,1758925832099,-192.82125378,0.0001937,2]
[387847034,1758925832108,-269.0,0.00019442,2]
[387847036,1758925832117,-192.82125378,0.00019452,2]
[387847038,1758925832126,-338.48955253,0.00019461,2]
[387847039,1758925832138,-154.25700303,0.00019479,2]
[387847041,1758925832148,-269.0,0.00019496,2]
[387847043,1758925832157,-194.58,0.00019506,2]
[387847044,1758925832167,-192.82125378,0.00019534,2]
[387847046,1758925832176,-843.8474204,0.00019544,2]
[387847048,1758925832186,-154.25700303,0.00019562,2]
[387847049,1758925832196,-192.82125378,0.00019616,2]
[387847051,1758925832205,-154.25700303,0.00019644,2]
[387847053,1758925832215,-192.82125378,0.00019699,2]
[387847055,1758925832234,-1000.0,0.000197,2]
[387847056,1758925832248,-902.0,0.00019729,2]
[387847058,1758925832264,-154.25700303,0.00019753,2]
[387847060,1758925832273,-192.82125378,0.00019753,2]
[387847061,1758925832283,-617.85669806,0.0001977,2]
[387847063,1758925832292,-3354.3782,0.000198,2]
[387847065,1758925832302,-23436.0437028,0.000198,2]
[387847066,1758925832311,-150.0,0.00019829,2]
[387847068,1758925832320,-1000.0,0.0001983,2]
[387847070,1758925832329,-1000.0,0.00019831,2]
[387847071,1758925832339,-154.25700303,0.00019836,2]
[387847073,1758925832348,-192.82125378,0.00019836,2]
[387847075,1758925832357,-200.0,0.0001984,2]
[387847077,1758925832367,-828.33969566,0.00019841,2]
[387847078,1758925832377,-490.78928287,0.0001985,2]
[387847079,1758925832386,-490.78928287,0.00019853,2]
[387847080,1758925832396,-828.33969566,0.00019855,2]
[387847081,1758925832406,-490.78928287,0.00019868,2]
[387847082,1758925832417,-490.78928287,0.00019869,2]
[387847083,1758925832427,-828.33969566,0.0001987,2]
[387847084,1758925832437,-828.33969566,0.00019872,2]
[387847085,1758925832446,-231.31,0.00019879,2]
[387847086,1758925832456,-700.25050683,0.00019884,2]
[387847087,1758925832467,-828.33969566,0.00019896,2]
[387847088,1758925832476,-172.58000194,0.00019898,2]
[387847089,1758925832486,-10341.4473,0.000199,2]
[387847090,1758925832495,-33261.864,0.000199,2]
[387847091,1758925832505,-1000.0,0.000199,2]
[387847092,1758925832514,-456.80061108,0.000199,2]
[387847094,1758925832524,-5000.0,0.000199,2]
[387847096,1758925832534,-17707.43402279,0.000199,2]
[387847098,1758925832543,-10000.0,0.000199,2]
[387847100,1758925832553,-151.12327592,0.000199,2]
[387847102,1758925832562,-507.72448546,0.000199,2]
[387847104,1758925832571,-1232.806,0.00019929,2]
[387847106,1758925832581,-828.33969566,0.00019932,2]
[387847108,1758925832591,-843.8474204,0.00019933,2]
[387847110,1758925832600,-490.78928287,0.00019934,2]
[387847112,1758925832610,-490.78928287,0.00019943,2]
[387847114,1758925832619,-269.0,0.00019951,2]
[387847120,1758925832803,-1000.0,0.00019958,2]
[387847121,1758925832814,-994.71552186,0.00019962,2]
[387847122,1758925832824,-500.0,0.00019973,2]
[387847123,1758925832833,-500.0,0.00019973,2]
[387847124,1758925832842,-500.0,0.00019973,2]
[387847125,1758925832851,-500.0,0.00019973,2]
[387847126,1758925832860,-500.0,0.00019973,2]
[387847127,1758925832869,-500.0,0.00019981,2]
[387847128,1758925832878,-150.0,0.00019981,2]
[387847129,1758925832887,-150.0,0.00019981,2]
[387847130,1758925832897,-500.0,0.00019981,2]
[387847131,1758925832906,-150.0,0.00019981,2]
[387847132,1758925832916,-500.0,0.00019981,2]
[387847133,1758925832925,-150.0,0.00019981,2]
[387847134,1758925832934,-500.0,0.00019981,2]
[387847135,1758925832945,-500.0,0.00019981,2]
[387847136,1758925832955,-150.0,0.00019981,2]
[387847137,1758925832965,-500.0,0.00019981,2]
[387847138,1758925832974,-150.0,0.00019981,2]
[387847139,1758925832984,-150.0,0.00019981,2]
[387847140,1758925832995,-500.0,0.00019981,2]
[387847141,1758925833004,-150.0,0.00019981,2]
[387847142,1758925833014,-500.0,0.00019981,2]
[387847143,1758925833024,-150.0,0.00019981,2]
[387847144,1758925833034,-150.0,0.00019981,2]
[387847145,1758925833047,-150.0,0.00019981,2]
[387847146,1758925833063,-500.0,0.00019981,2]
[387847147,1758925833074,-150.0,0.00019981,2]
[387847148,1758925833084,-500.0,0.00019981,2]
[387847149,1758925833094,-150.0,0.00019981,2]
[387847150,1758925833105,-150.0,0.00019981,2]
[387847151,1758925833116,-150.32338469,0.00019981,2]
[387847152,1758925833126,-150.0,0.00019981,2]
[387847153,1758925833135,-500.0,0.00019981,2]
[387847154,1758925833145,-424.0,0.00019981,2]
[387847155,1758925833155,-490.78928287,0.00019985,2]
[387847156,1758925833164,-828.33969566,0.00019994,2]
[387847157,1758925833174,-160.65615785,0.00019995,2]
[387847158,1758925833184,-5000.0,0.00019996,2]
[387847159,1758925833193,-5000.0,0.00019998,2]
[387847160,1758925833203,-300.0,0.00019999,2]
[387847161,1758925833213,-5000.0,0.00019999,2]
[387847162,1758925833222,-4630.23318065,0.0002,2]
[387847163,1758925833231,-65460.70492507,0.0002,2]
[387847164,1758925833241,-2600.0,0.0002,2]
[387847165,1758925833250,-377519.73673552,0.0002,2]
[387847166,1758925833264,-23648.49495727,0.0002,2]
[387847167,1758925833275,-561.68586357,0.0002,2]
[387847168,1758925833286,-759.80301203,0.0002,2]
[387847169,1758925833363,-3174.28713519,0.0002,2]
[387847170,1758925833374,-11660.01844012,0.0002,2]
[387847171,1758925833429,-4472.61728148,0.0002,2]
[387847172,1758925833493,-808.94,0.0002,2]
[387847173,1758925833505,-1317.36,0.0002,2]
[387847174,1758925833516,-419.89300002,0.0002,2]
[387847175,1758925833527,-964.06434895,0.0002,2]
[387847176,1758925833539,-5961.60605782,0.0002,2]
[387847177,1758925833551,-666.0,0.0002,2]
[387847178,1758925833562,-1387.20657822,0.0002,2]
[387847179,1758925833785,-2000.0,0.0002,2]
[387847180,1758925833797,-1551.846205,0.0002,2]
[387847239,1758925841841,-2314.55241,0.000198,2]
[387847241,1758925841851,-499.99,0.0002,2]
[387847242,1758925841860,-3699.12319955,0.0002,2]
[387847243,1758925841893,-8479.54793009,0.0002,2]
[387847283,1758925846973,-1855.55360868,0.000199,2]
[387847284,1758925846982,-500.0,0.00019981,2]
[387847285,1758925846992,-315036.12787464,0.0002,2]
[387847286,1758925847003,-322116.7965425,0.0002,2]
[387847287,1758925847036,-713.17300008,0.0002,2]
[387847288,1758925847184,-83914.51247202,0.0002,2]
[387847289,1758925847198,-3429.01071185,0.0002,2]
[387847290,1758925847211,-208500.0,0.0002,2]
[387847291,1758925847223,-30967.1612484,0.0002,2]
[387847292,1758925847235,-465.255,0.0002,2]
[387847295,1758925851615,-150.0,0.00019981,2]
[387847296,1758925851624,-187.88,0.00019981,2]
[387847297,1758925851636,-391.12,0.00019981,2]
[387847298,1758925851646,-500.0,0.0002,2]
[387847299,1758925851657,-13174.277497,0.0002,2]
[387847300,1758925851670,-16835.8671,0.0002,2]
[387847301,1758925851784,-33636.65757482,0.0002,2]
[387847302,1758925851798,-33733.70514288,0.0002,2]
[387847303,1758925851886,-1034.46698492,0.0002,2]
[387847304,1758925851965,-641.0,0.0002,2]
[387847305,1758925854333,500.0,0.00016712,2]
[387847306,1758925854913,500.0,0.00030136,120]
[387847307,1758925855850,-53774.94843915,0.0002,2]
[387847313,1758925894360,159.28,9.579e-05,2]
[387847314,1758925894498,159.28,0.00010316,2]
[387847315,1758925894650,159.28,0.00011053,2]
[387847316,1758925894782,159.28,0.00011789,2]
[387847317,1758925895146,159.28,0.00012526,2]
[387847318,1758925895355,159.28,0.00013263,2]
[387847319,1758925895542,159.28,0.00014,2]
[387847320,1758925895670,159.28,0.00014737,2]
[387847321,1758925895755,159.28,0.00015474,2]
[387847322,1758925895841,159.28,0.00016211,2]
[387847323,1758925895940,159.28,0.00016947,2]
[387847324,1758925896157,159.28,0.00017684,2]
[387847325,1758925896266,159.28,0.00018421,2]
[387847330,1758925929087,-166.00701143,0.00018558,2]
[387847335,1758925960537,500.0,0.00030136,120]
[387847340,1758925977179,1800.0,0.00016712,2]
[387847341,1758925980051,1800.0,0.00017808,2]
[387847354,1758926065305,400.0,0.00016712,2]
[387847363,1758926186957,411.523612,0.00018487,2]
[387847365,1758926277648,2009.0868703,0.00030136,120]
[387847374,1758926369017,20000.0,0.00018,2]
[387847376,1758926393794,-298.1435468,0.00018541,2]
[387847378,1758926397083,-158.105283,0.00018541,2]
[387847379,1758926399182,-151.271199,0.00018541,2]
[387847380,1758926401683,-183.90996957,0.00018541,2]
[387847381,1758926404221,20000.0,0.00018,2]
[387847382,1758926406001,-214.05585807,0.00018541,2]
[387847383,1758926407813,-167.88535837,0.00018541,2]
[387847384,1758926409651,-130.41878519,0.00018541,2]
[387847399,1758926549498,-192.35243187,0.00018541,2]
[387847400,1758926554287,-575.49616224,0.00018541,2]
[387847401,1758926558635,-189.32138835,0.00018541,2]
[387847402,1758926562961,-241.06396395,0.00018541,2]
[387847403,1758926568963,-214.05585807,0.00018541,2]
[387847404,1758926572982,150.0,0.000178,2]
[387847405,1758926573549,-191.36404941,0.00018541,2]
[387847407,1758926577888,-343.8623383,0.00018541,2]
[387847408,1758926582319,-52.48380781,0.00018541,2]
[387847409,1758926582347,-158.81612514,0.00018541,2]
[387847410,1758926582401,254.525597,0.00018448,2]
[387847412,1758926586158,-174.46133227,0.00018541,2]
[387847413,1758926588179,-344.2816139,0.00018541,2]
[387847414,1758926591057,-292.27573574,0.00018541,2]
[387847415,1758926593365,-206.72998755,0.00018541,2]
[387847417,1758926598451,-174.46133227,0.0001854,2]
[387847418,1758926598477,-178.27428031,0.00018541,2]
[387847419,1758926602132,-194.76282735,0.0001854,2]
[387847420,1758926604963,-94.63127574,0.0001854,2]
[387847421,1758926604991,-204.1851701,0.00018541,2]
[387847422,1758926607784,-213.37465816,0.00018541,2]
[387847424,1758926609947,-154.26741002,0.00018541,2]
[387847425,1758926614140,-73.33368681,0.00018541,2]
[387847426,1758926614167,-406.75112109,0.00018541,2]
[387847427,1758926616544,-257.9538612,0.0001854,2]
[387847428,1758926620062,-21.98845446,0.0001854,2]
[387847429,1758926620087,-252.04038771,0.00018541,2]
[387847430,1758926623055,-214.1158843,0.00018541,2]
[387847431,1758926626504,-127.0926069,0.00018541,2]
[387847432,1758926626532,-194.43389173,0.00018541,2]
[387847433,1758926630372,-283.10642535,0.00018541,2]
[387847434,1758926632263,-325.75224573,0.00018541,2]
[387847435,1758926634461,-179.18355416,0.0001854,2]
[387847436,1758926636895,-151.0,0.0001854,2]
[387847437,1758926639526,-149.53060187,0.0001854,2]
[387847438,1758926639555,-22.54079351,0.00018541,2]
[387847439,1758926643595,-325.75224573,0.0001854,2]
[387847440,1758926643623,-45.65385469,0.00018541,2]
[387847441,1758926646573,-128.51278899,0.00018541,2]
[387847442,1758926646599,-68.1410657,0.00018541,2]
[387847443,1758926650505,-252.9146069,0.0001854,2]
[387847444,1758926652260,-68.61189173,0.0001854,2]
[387847445,1758926652286,-146.61456707,0.00018541,2]
[387847446,1758926656368,-299.54456707,0.00018541,2]
[387847450,1758926716340,150.0,0.00018,2]
[387847451,1758926722847,150.0,0.00018,2]
[387847452,1758926738842,150.0,0.00018,2]
[387847453,1758926773022,173.91,0.00014844,2]
[387847464,1758926854164,214.16,9.264e-05,2]
[387847521,1758927032986,1000.0,0.0001848,2]
[387847522,1758927034310,-152.93,0.00018527,2]
[387847523,1758927034320,-195.0,0.00018528,2]
[387847524,1758927034330,-195.0,0.00018529,2]
[387847525,1758927034339,-300.0,0.00018531,2]
[387847526,1758927034349,-150.0,0.00018531,2]
[387847527,1758927034359,-324.50108315,0.00018534,2]
[387847528,1758927034368,-2000.0,0.00018534,2]
[387847529,1758927034378,-195.0,0.00018535,2]
[387847530,1758927034387,-1200.0,0.0001854,2]
[387847531,1758927034398,-485.69980016,0.00018541,2]
[387847532,1758927034408,-1000.0,0.00018541,2]
[387847533,1758927034418,-250.0,0.00018543,2]
[387847534,1758927034632,-300.0,0.00018544,2]
[387847535,1758927034646,-2500.0,0.00018545,2]
[387847536,1758927034656,-165.86,0.00018555,2]
[387847537,1758927034666,-2500.0,0.00018557,2]
[387847538,1758927034675,-610.72115385,0.0001858,2]
[387847539,1758927034685,-204.65,0.00018638,2]
[387847540,1758927034694,-150.0,0.00018675,7]
[387847541,1758927034703,-361.75,0.00018675,2]
[387847542,1758927034713,-201.93286099,0.00018796,2]
[387847543,1758927034725,-293.48,0.00018821,3]
[387847544,1758927034734,-331.14,0.00018899,2]
[387847545,1758927034744,-806.06,0.000189,2]
[387847546,1758927034753,-537.15,0.000189,2]
[387847547,1758927034762,-1800.0,0.00018904,2]
[387847548,1758927034771,-687.9,0.00018917,2]
[387847549,1758927034781,-150.0,0.0001898,2]
[387847550,1758927034791,-2830.35,0.00019083,2]
[387847551,1758927034800,-8608.86,0.00019095,2]
[387847552,1758927034809,-159.28,0.00019158,2]
[387847553,1758927034819,-1194.99,0.00019178,2]
[387847554,1758927034828,-500.0,0.00019328,2]
[387847555,1758927034837,-500.0,0.00019328,2]
[387847556,1758927034847,-500.0,0.00019328,2]
[387847557,1758927034856,-3630.79515619,0.00019329,2]
[387847558,1758927034866,-175.32,0.00019342,2]
[387847559,1758927034875,-1194.99,0.00019342,2]
[387847560,1758927034885,-1191.66,0.00019342,2]
[387847561,1758927034894,-1194.73,0.00019342,2]
[387847562,1758927034904,-230.48,0.00019386,2]
[387847563,1758927034913,-592.10501657,0.00019399,2]
[387847564,1758927034922,-204.65,0.0001957,2]
[387847565,1758927034932,-2000.0,0.000197,2]
[387847566,1758927034941,-678.3,0.000197,2]
[387847567,1758927034951,-1425.0,0.00019734,2]
[387847568,1758927034961,-1425.0,0.00019734,2]
[387847569,1758927034970,-1000.0,0.0001974,2]
[387847570,1758927034980,-1425.0,0.00019776,2]
[387847571,1758927034989,-1000.0,0.00019785,2]
[387847572,1758927034999,-1928.79368,0.000198,2]
[387847573,1758927035008,-1000.0,0.00019813,2]
[387847574,1758927035018,-1000.0,0.00019829,2]
[387847575,1758927035027,-1425.0,0.00019836,2]
[387847576,1758927035037,-150.0,0.00019836,2]
[387847577,1758927035046,-229.99353738,0.00019839,2]
[387847578,1758927035056,-642.46829247,0.00019839,2]
[387847579,1758927035066,-200.0,0.0001984,2]
[387847580,1758927035075,-1425.0,0.00019871,2]
[387847581,1758927035085,-391.54338096,0.000199,2]
[387847582,1758927035094,-5000.0,0.000199,2]
[387847583,1758927035104,-172.58000194,0.000199,2]
[387847584,1758927035114,-840.65873769,0.000199,2]
[387847585,1758927035170,-1088.13494231,0.000199,2]
[387847586,1758927035179,-155.20923505,0.000199,2]
[387847587,1758927035189,-154.71543955,0.000199,2]
[387847588,1758927035198,-2500.0,0.000199,2]
[387847589,1758927035208,-1130.671,0.0001991,2]
[387847590,1758927035217,-1425.0,0.00019929,2]
[387847591,1758927035226,-1425.0,0.0001993,2]
[387847592,1758927035237,-1425.0,0.0001993,2]
[387847593,1758927035246,-1000.0,0.00019943,2]
[387847594,1758927035256,-500.0,0.00019973,2]
[387847595,1758927035266,-500.0,0.00019973,2]
[387847596,1758927035276,-504.49548862,0.00019973,2]
[387847597,1758927035286,-500.0,0.00019973,2]
[387847598,1758927035295,-150.0,0.00019974,2]
[387847599,1758927035304,-150.0,0.00019981,2]
[387847600,1758927035314,-150.0,0.00019981,2]
[387847601,1758927035324,-150.0,0.00019981,2]
[387847602,1758927035333,-236.17091096,0.00019981,2]
[387847603,1758927035342,-473.0,0.00019981,2]
[387847604,1758927035352,-200.0,0.00019981,2]
[387847605,1758927035362,-150.0,0.00019981,2]
[387847606,1758927035372,-150.0,0.00019981,2]
[387847607,1758927035382,-500.0,0.00019981,2]
[387847608,1758927035391,-500.0,0.00019981,2]
[387847609,1758927035402,-150.0,0.00019981,2]
[387847610,1758927035411,-150.0,0.00019981,2]
[387847611,1758927035421,-150.0,0.00019981,2]
[387847612,1758927035431,-500.0,0.00019981,2]
[387847613,1758927035440,-150.0,0.00019981,2]
[387847614,1758927035450,-237.05160217,0.00019981,2]
[387847615,1758927035460,-500.0,0.00019981,2]
[387847616,1758927035470,-34.17510511,0.00019981,2]
[387847617,1758927035482,-202.27204133,0.00019981,2]
[387847618,1758927035491,-500.0,0.00019981,2]
[387847619,1758927035501,-100.61428829,0.00019981,2]
[387847620,1758927035640,-399.38571171,0.00019981,2]
[387847621,1758927035651,-164.49,0.0001999,2]
[387847622,1758927035661,-1425.0,0.00019991,2]
[387847623,1758927035671,-5000.0,0.00019996,2]
[387847624,1758927035681,-151.0,0.00019997,2]
[387847625,1758927035691,-5000.0,0.00019998,2]
[387847626,1758927035701,-300.0,0.00019999,2]
[387847627,1758927035710,-2040.0000002,0.00019999,2]
[387847628,1758927035726,-6750.3451085,0.00019999,2]
[387847629,1758927035736,-160.8535914,0.00019999,2]
[387847630,1758927035745,-2028.91398822,0.00019999,2]
[387847631,1758927035772,-531.72638653,0.00019999,2]
[387847632,1758927035937,-2439.35962525,0.00019999,2]
[387847633,1758927035947,-97.13679235,0.00019999,2]
[387847634,1758927035958,-302.86320765,0.00019999,2]
[387847635,1758927035969,-58.78164253,0.0002,2]
[387847636,1758927036760,-529.28140338,0.0002,2]
[387847873,1758927042568,-150.06574641,0.0001999,2]
[387847874,1758927042577,-177.06544272,0.0002,2]
[387847876,1758927042589,-294.75802627,0.0002,2]
[387847878,1758927042600,-1255.23007542,0.0002,2]
[387847881,1758927042609,-29.78992458,0.0002,2]
[387847900,1758927047882,-48525.29062981,0.0002,2]
[387847901,1758927047892,-1800.0,0.0002,2]
[387847902,1758927047902,-85828.72889782,0.0002,2]
[387847903,1758927047912,-158.99994182,0.0002,2]
[387847904,1758927047922,-2101.26121845,0.0002,2]
[387847905,1758927047932,-1065.4892,0.0002,2]
[387847906,1758927047942,-2000.0,0.0002,2]
[387847907,1758927047952,-72512.55203009,0.0002,2]
[387847908,1758927047962,-1441.46771697,0.0002,5]
[387847909,1758927047972,-25224.4545419,0.0002,2]
[387847910,1758927047981,-6861.31582164,0.0002,5]
[387847911,1758927048080,-93833.52922975,0.0002,5]
[387847912,1758927048089,-8281.57559925,0.0002,4]
[387847913,1758927048098,-220001.6917135,0.0002,2]
[387847914,1758927048109,-800.0,0.0002,2]
[387847915,1758927048120,-1079.2222037,0.0002,2]
[387847916,1758927048132,-3493.2562481,0.0002,2]
[387847917,1758927048143,-368571.52354697,0.0002,2]
[387847918,1758927048240,-788.50317115,0.0002,2]
[387847919,1758927048252,-122223.93874369,0.0002,2]
[387847920,1758927048263,-4089.74748989,0.0002,2]
[387847921,1758927048370,-424.10729223,0.0002,2]
[387847922,1758927048382,-738.512065,0.0002,2]
[387847923,1758927053223,-160.99547617,0.00019995,2]
[387847924,1758927053232,-275.28702694,0.00019995,2]
[387847925,1758927053331,-174.44077779,0.00019995,2]
[387847926,1758927053340,-28075.66589161,0.0002,2]
[387847927,1758927053420,-807.76015545,0.0002,2]
[387847930,1758927158008,1000.0,0.00016986,2]
[387847931,1758927161359,1000.0,0.00018082,2]
[387847937,1758927215064,189.12,0.000286,120]
[387847946,1758927458691,160.243032,0.00017897,2]
[387847947,1758927458762,161.222881,0.00018156,2]
[387847948,1758927459230,156.980461,0.00017897,2]
[387847949,1758927460254,1092.715474,0.00018402,2]
[387847950,1758927460678,1092.715474,0.00018402,2]
[387847951,1758927461044,1092.715474,0.00018401,2]
[387847952,1758927461447,1092.715474,0.00018156,2]
[387847953,1758927461822,1092.715474,0.00018156,2]
[387847954,1758927462240,156.200227,0.00018402,2]
[387847955,1758927462319,1092.715474,0.00017909,2]
[387847956,1758927462546,156.200227,0.00018401,2]
[387847957,1758927462622,1092.715474,0.00017909,2]
[387847958,1758927463443,156.200227,0.00018156,2]
[387847959,1758927463546,1092.715474,0.00017897,2]
[387847960,1758927464179,156.200227,0.00017909,2]
[387847961,1758927464210,1092.715474,0.00017859,2]
[387847962,1758927464367,1092.715474,0.00017857,2]
[387847963,1758927464426,156.200227,0.00017859,2]
[387847964,1758927464606,1092.715474,0.00017857,2]
[387847965,1758927464689,156.200227,0.00017857,2]
[387847966,1758927464803,1092.715474,0.00017856,2]
[387847967,1758927465024,156.200227,0.00017852,2]
[387847968,1758927465139,1092.715474,0.00017852,2]
[387847969,1758927465272,1092.715474,0.00017719,2]
[387847970,1758927467679,150.951309,0.00018402,2]
[387847971,1758927467902,150.951309,0.00018156,2]
[387847972,1758927468086,150.951309,0.00017909,2]
[387847973,1758927468215,150.951309,0.00017897,2]
[387847974,1758927468402,150.951309,0.00017857,2]
[387847975,1758927468735,150.951309,0.00017857,2]
[387847976,1758927469342,150.951309,0.00017852,2]
[387847984,1758927574865,250.0,0.00015,2]
[387847985,1758927622441,150.0,0.000177,2]
[387847987,1758927664985,276.305895,0.00018402,2]
[387847988,1758927665069,151.0,0.00018402,2]
[387847989,1758927665166,276.305895,0.00018402,2]
[387848000,1758927966705,230.2549125,0.00018402,2]
[387848002,1758927968625,338.361785,0.0001849,2]
[387848003,1758927971597,172.69118437,0.00018402,2]
[387848004,1758927972569,151.0,0.0001849,2]
[387848005,1758927972692,215.86398046,0.0001849,2]
[387848008,1758927978253,151.0,0.0001849,2]
[387848028,1758928152896,150.0,0.000167,2]
[387848029,1758928153521,150.0,0.0001788,2]
[387848041,1758928171088,174.69,9.296e-05,2]
[387848136,1758928235858,-190.01698382,0.00018524,2]
[387848137,1758928235868,-195.0,0.00018539,2]
[387848138,1758928235878,-195.0,0.00018554,2]
[387848139,1758928235888,-431.35663973,0.00018581,2]
[387848140,1758928235898,-300.0,0.00018583,2]
[387848141,1758928235908,-195.0,0.00018593,2]
[387848142,1758928235918,-2000.0,0.00018603,2]
[387848143,1758928235927,-484.48,0.00018624,2]